bitfinex/quotes_BTCUSD_20241119
["timestamp","ask_amount","ask_price","bid_price","bid_amount"]
[1732026226075,0.16461949,91408.0,91403.0,0.24146755]
[1732026226780,0.0008542,91408.0,91403.0,0.24146755]
[1732026228481,0.0008542,91408.0,91403.0,0.109405]
[1732026228696,0.0008542,91408.0,91397.0,0.218825]
[1732026228929,0.1094,91407.0,91400.0,0.109409]
[1732026229170,0.01103342,91403.0,91401.0,0.109407]
[1732026229415,0.0008542,91408.0,91385.0,0.16376529]
[1732026229629,0.0008542,91408.0,91387.0,0.218849]
[1732026229856,0.0008542,91408.0,91387.0,0.16376529]
[1732026229857,0.31858833,91403.0,91387.0,0.16376529]
[1732026230065,0.31858833,91403.0,91386.0,0.109424]
[1732026230066,0.218818,91400.0,91386.0,0.109424]
[1732026230275,0.218818,91400.0,91376.0,0.38264029]
[1732026230276,0.109421,91390.0,91381.0,0.109431]
[1732026230545,0.109421,91390.0,91367.0,0.01]
[1732026230546,0.109421,91390.0,91351.0,0.0004]
[1732026230547,0.533,91364.0,91351.0,0.0004]
[1732026230789,0.209452,91364.0,91351.0,0.0004]
[1732026231008,0.109452,91364.0,91351.0,0.0004]
[1732026231228,0.109457,91360.0,91351.0,0.0004]
[1732026231446,0.31851955,91360.0,91351.0,0.0004]
[1732026231675,0.51207191,91360.0,91351.0,0.0004]
[1732026231894,0.67571951,91360.0,91351.0,0.0004]
[1732026232118,0.56635781,91360.0,91351.0,0.0004]
[1732026232337,0.50960788,91360.0,91351.0,0.0004]
[1732026232571,0.50960788,91360.0,91330.0,0.16376529]
[1732026232572,0.109479,91342.0,91330.0,0.16376529]
[1732026232783,0.01,91358.0,91330.0,0.16376529]
[1732026232784,0.09678986,91351.0,91330.0,0.16376529]
[1732026233000,0.19357972,91356.0,91320.0,0.219008]
[1732026233001,0.09678986,91349.0,91320.0,0.219008]
[1732026233265,0.09678986,91349.0,91330.0,0.109492]
[1732026233266,0.218947,91346.0,91330.0,0.109492]
[1732026233478,0.218947,91346.0,91325.0,0.218997]
[1732026233479,0.218945,91347.0,91328.0,0.109495]
[1732026233747,0.109479,91342.0,91329.0,0.109494]
[1732026233985,0.38271229,91346.0,91325.0,0.218997]
[1732026233986,0.16376529,91346.0,91325.0,0.218997]
[1732026234201,0.16376529,91346.0,91331.0,0.0012543]
[1732026234202,0.109477,91343.0,91331.0,0.0012543]
[1732026234863,0.16376529,91346.0,91331.0,0.0012543]
[1732026235524,0.09668085,91352.0,91332.0,0.10906255]
[1732026235758,0.16376529,91346.0,91343.0,0.109476]
[1732026235980,0.218911,91362.0,91344.0,0.0109476]
[1732026235981,0.16376529,91355.0,91344.0,0.0109476]
[1732026236231,0.16376529,91355.0,91331.0,0.0012543]
[1732026236232,0.16376529,91345.0,91331.0,0.0012543]
[1732026236467,0.19108833,91350.0,91331.0,0.0012543]
[1732026236468,0.19108833,91350.0,91332.0,0.16376529]
[1732026236670,0.16376529,91344.0,91336.0,0.109484]
[1732026236913,0.109473,91347.0,91335.0,0.109486]
[1732026237139,0.109473,91347.0,91331.0,0.0012543]
[1732026237140,0.16376529,91354.0,91331.0,0.0012543]
[1732026237362,0.16376529,91354.0,91343.0,0.109476]
[1732026237589,0.16376529,91354.0,91332.0,0.27282784]
[1732026237590,0.16376529,91354.0,91345.0,0.109474]
[1732026237808,0.16376529,91354.0,91333.0,0.16376529]
[1732026238025,0.09668085,91360.0,91343.0,0.16376529]
[1732026238288,0.35712699,91366.0,91355.0,0.109463]
[1732026238289,0.16376529,91356.0,91355.0,0.109463]
[1732026238514,0.26044614,91366.0,91344.0,0.40521355]
[1732026238724,0.16376529,91366.0,91345.0,0.01190626]
[1732026238943,0.16376529,91366.0,91361.0,0.109455]
[1732026239189,0.16376529,91366.0,91346.0,0.10906255]
[1732026239190,0.09668085,91369.0,91350.0,0.01]
[1732026239400,0.09668085,91370.0,91366.0,0.109449]
[1732026239622,0.109433,91380.0,91351.0,0.10906255]
[1732026239623,0.09668085,91371.0,91363.0,0.218905]
[1732026239871,0.09668085,91377.0,91366.0,0.16376529]
[1732026240088,0.09668085,91383.0,91368.0,0.023]
[1732026240307,0.09668085,91383.0,91382.0,0.10943]
[1732026240762,0.0017086,91389.0,91369.0,0.11906255]
[1732026240763,0.09838945,91389.0,91370.0,0.023]
[1732026241036,0.0017086,91389.0,91382.0,0.109429]
[1732026241243,0.0017086,91389.0,91379.0,0.218866]
[1732026241244,0.0017086,91389.0,91386.0,0.109424]
[1732026241463,0.0017086,91389.0,91384.0,0.109427]
[1732026242533,0.0017086,91389.0,91377.0,0.437746]
[1732026242534,0.0017086,91389.0,91386.0,0.109425]
[1732026242751,0.0017086,91389.0,91388.0,0.109423]
[1732026242960,0.0017086,91389.0,91388.0,0.21848555]
[1732026243456,0.0017086,91389.0,91388.0,0.26148555]
[1732026243964,0.0017086,91389.0,91388.0,0.36148555]
[1732026244208,0.0017086,91389.0,91388.0,0.44058555]
[1732026244431,0.0008542,91408.0,91403.0,0.119405]
[1732026244658,0.0008542,91408.0,91407.0,0.1524]
[1732026244891,4e-05,91419.0,91407.0,0.1524]
[1732026244892,4e-05,91419.0,91418.0,0.129387]
[1732026245127,4e-05,91419.0,91418.0,0.36144955]
[1732026247557,4e-05,91419.0,91418.0,0.43944955]
[1732026247995,4e-05,91443.0,91442.0,0.109358]
[1732026248212,4e-05,91443.0,91442.0,0.22936305]
[1732026248420,4e-05,91443.0,91442.0,0.37236305]
[1732026248902,0.0008548,91462.0,91442.0,0.37236305]
[1732026248903,0.0008548,91462.0,91461.0,0.109336]
[1732026249116,0.0008548,91462.0,91461.0,0.21839855]
[1732026249358,0.0008548,91462.0,91461.0,0.2674648]
[1732026249591,0.0008548,91462.0,91461.0,0.4104648]
[1732026250071,0.0008548,91462.0,91448.0,0.0477]
[1732026250072,0.0008548,91462.0,91452.0,0.109346]
[1732026250314,0.109344,91455.0,91452.0,0.16376529]
[1732026250565,0.109344,91454.0,91441.0,0.16376529]
[1732026250793,0.218706,91447.0,91441.0,0.16376529]
[1732026251003,0.218672,91461.0,91441.0,0.16376529]
[1732026251221,0.07249675,91461.0,91441.0,0.16376529]
[1732026251443,0.043751,91460.0,91441.0,0.16376529]
[1732026251676,0.043751,91460.0,91441.0,0.27312529]
[1732026251900,0.109344,91455.0,91443.0,0.109357]
[1732026252108,0.218689,91454.0,91444.0,0.16376529]
[1732026252317,0.04355491,91455.0,91444.0,0.16376529]
[1732026252549,0.218685,91456.0,91444.0,0.16376529]
[1732026252792,0.153088,91460.0,91445.0,0.109355]
[1732026253009,0.0008948,91462.0,91461.0,0.109336]
[1732026253690,0.0008948,91462.0,91450.0,0.01]
[1732026253932,0.0008948,91462.0,91456.0,0.10906255]
[1732026254140,0.0008948,91462.0,91454.0,0.16376529]
[1732026254369,0.0008948,91462.0,91454.0,0.15466553]
[1732026254801,0.0008948,91462.0,91443.0,0.01]
[1732026255083,0.0008948,91462.0,91451.0,0.218695]
[1732026255263,0.0008948,91462.0,91428.0,0.01]
[1732026255264,0.10995735,91462.0,91428.0,0.01]
[1732026255474,0.10995735,91462.0,91442.0,0.16376529]
[1732026255475,0.109357,91443.0,91442.0,0.16376529]
[1732026255690,0.10906255,91461.0,91410.0,0.16376529]
[1732026255691,0.10937,91432.0,91414.0,0.01]
[1732026255899,0.10937,91432.0,91411.0,0.218789]
[1732026256108,0.218727,91439.0,91426.0,0.109377]
[1732026256333,4e-05,91456.0,91426.0,0.109377]
[1732026256334,0.1,91454.0,91426.0,0.109377]
[1732026256580,0.10906255,91453.0,91426.0,0.109377]
[1732026256810,0.21871,91446.0,91430.0,0.16376529]
[1732026257046,0.109364,91438.0,91430.0,0.16376529]
[1732026257280,0.25148725,91446.0,91430.0,0.16376529]
[1732026257281,0.109367,91435.0,91430.0,0.16376529]
[1732026257512,0.109372,91431.0,91430.0,0.16376529]
[1732026257720,0.109372,91431.0,91400.0,0.38258129]
[1732026257721,0.218773,91419.0,91400.0,0.38258129]
[1732026257957,0.218751,91428.0,91421.0,0.16376529]
[1732026258189,0.10906255,91430.0,91408.0,0.218797]
[1732026258402,0.04004044,91429.0,91404.0,0.218807]
[1732026258616,0.04004044,91429.0,91411.0,0.16376529]
[1732026258890,0.04004044,91429.0,91400.0,0.16376529]
[1732026258891,0.109407,91401.0,91400.0,0.16376529]
[1732026259329,0.109413,91397.0,91395.0,0.1]
[1732026259561,0.218794,91410.0,91390.0,0.16376529]
[1732026259770,0.109399,91408.0,91394.0,0.109415]
[1732026259969,0.02000175,91421.0,91394.0,0.109415]
[1732026259970,0.109406,91403.0,91394.0,0.109415]
[1732026260256,0.20906255,91421.0,91390.0,0.16376529]
[1732026260257,0.0109406,91402.0,91390.0,0.16376529]
[1732026260486,0.1,91419.0,91390.0,0.16376529]
[1732026260487,0.29134183,91410.0,91390.0,0.16376529]
[1732026260698,0.29134183,91410.0,91394.0,0.109415]
[1732026260911,0.109407,91402.0,91394.0,0.109415]
[1732026261120,0.218799,91408.0,91395.0,0.109414]
[1732026261376,0.109429,91383.0,91368.0,0.01]
[1732026261603,0.109429,91383.0,91382.0,0.16524919]
[1732026261849,0.109429,91383.0,91382.0,0.0014839]
[1732026262058,0.109429,91383.0,91361.0,0.1]
[1732026262059,0.218855,91385.0,91361.0,0.1]
[1732026262294,0.31134289,91388.0,91361.0,0.1]
[1732026262295,0.109438,91376.0,91361.0,0.1]
[1732026262506,0.109435,91379.0,91364.0,0.218902]
[1732026262775,0.02000106,91386.0,91370.0,0.109444]
[1732026263010,0.109429,91383.0,91371.0,0.109443]
[1732026263235,0.109435,91378.0,91368.0,0.109447]
[1732026263679,0.02000106,91385.0,91372.0,0.16076529]
[1732026263919,0.02000106,91385.0,91357.0,0.01]
[1732026263920,0.109435,91378.0,91367.0,0.109447]
[1732026264185,0.02000408,91391.0,91373.0,0.16376529]
[1732026264398,0.109433,91380.0,91369.0,0.109446]
[1732026264624,0.109433,91380.0,91370.0,0.109444]
[1732026265053,0.218847,91388.0,91368.0,0.218892]
[1732026265287,0.0216496,91395.0,91368.0,0.218892]
[1732026265288,0.109431,91382.0,91371.0,0.109443]
[1732026265516,4e-05,91378.0,91369.0,0.218892]
[1732026265750,4e-05,91378.0,91372.0,0.109441]
[1732026266217,4e-05,91378.0,91377.0,0.109436]
[1732026266458,4e-05,91378.0,91359.0,0.218914]
[1732026266459,4e-05,91378.0,91358.0,0.01]
[1732026266670,4e-05,91378.0,91375.0,0.109438]
[1732026267128,4e-05,91378.0,91377.0,0.109436]
[1732026267360,4e-05,91378.0,91377.0,0.21849855]
[1732026267814,4e-05,91378.0,91377.0,0.25149855]
[1732026268022,4e-05,91378.0,91377.0,0.21849855]
[1732026268892,4e-05,91378.0,91377.0,0.21935235]
[1732026272602,4e-05,91378.0,91377.0,0.24235235]
[1732026272812,4e-05,91378.0,91377.0,0.25235235]
[1732026273926,4e-05,91378.0,91377.0,0.26235235]
[1732026274875,4e-05,91378.0,91377.0,0.55479468]
[1732026275108,4e-05,91378.0,91377.0,0.39102939]
[1732026275317,4e-05,91378.0,91377.0,0.29102939]
[1732026275568,4e-05,91378.0,91377.0,0.15832582]
[1732026275810,4e-05,91378.0,91377.0,0.26717559]
[1732026276037,4e-05,91378.0,91377.0,0.25717559]
[1732026276244,4e-05,91378.0,91377.0,0.26717559]
[1732026276676,4e-05,91378.0,91377.0,0.25717559]
[1732026276899,4e-05,91378.0,91377.0,0.21849855]
[1732026277544,4e-05,91378.0,91369.0,0.01]
[1732026277545,4e-05,91378.0,91356.0,0.01]
[1732026277751,4e-05,91378.0,91372.0,0.109442]
[1732026277989,4e-05,91378.0,91367.0,0.16376529]
[1732026277990,0.109436,91377.0,91369.0,0.109445]
[1732026278201,4e-05,91378.0,91367.0,0.218897]
[1732026278407,0.109476,91378.0,91370.0,0.109444]
[1732026278625,0.109476,91378.0,91371.0,0.109443]
[1732026278626,4e-05,91378.0,91371.0,0.109443]
[1732026278829,0.109475,91378.0,91368.0,0.16376529]
[1732026279061,0.109475,91378.0,91371.0,0.109443]
[1732026279506,4e-05,91378.0,91368.0,0.16376529]
[1732026279512,4e-05,91378.0,91377.0,0.109436]
[1732026279976,4e-05,91378.0,91371.0,0.218887]
[1732026280206,4e-05,91378.0,91377.0,0.109436]
[1732026281846,4e-05,91378.0,91369.0,0.10906255]
[1732026281847,4e-05,91378.0,91373.0,0.16376529]
[1732026282068,4e-05,91378.0,91377.0,0.109436]
[1732026282510,0.001749,91378.0,91377.0,0.109436]
[1732026283416,0.001749,91378.0,91377.0,0.22849855]
[1732026285245,0.02191776,91378.0,91377.0,0.22849855]
[1732026285467,0.02191776,91378.0,91377.0,0.25149855]
[1732026285673,0.001749,91378.0,91377.0,0.36149855]
[1732026285922,0.001749,91378.0,91377.0,0.3902577]
[1732026286139,0.02191681,91378.0,91377.0,0.3902577]
[1732026286574,0.001749,91378.0,91377.0,0.3902577]
[1732026287491,0.001749,91378.0,91377.0,0.4380577]
[1732026288353,1e-06,91378.0,91377.0,0.4380577]
[1732026289010,1e-06,91378.0,91377.0,0.60182299]
[1732026289232,4e-05,91410.0,91407.0,0.01]
[1732026289233,0.03230647,91409.0,91407.0,0.01]
[1732026289452,4e-05,91410.0,91402.0,0.01]
[1732026289453,4e-05,91410.0,91409.0,0.129398]
[1732026289705,0.0202355,91410.0,91409.0,0.25240035]
[1732026290829,0.0202355,91410.0,91409.0,0.21846055]
[1732026291087,0.05253565,91410.0,91409.0,0.109398]
[1732026291298,0.06619641,91410.0,91409.0,0.109398]
[1732026292690,0.06616877,91410.0,91409.0,0.109398]
[1732026292950,0.06616877,91410.0,91409.0,0.21846055]
[1732026294060,4e-05,91410.0,91409.0,0.55287919]
[1732026295264,0.0008944,91410.0,91409.0,0.55287919]
[1732026295981,0.0008944,91410.0,91409.0,0.36146055]
[1732026297370,0.0008944,91410.0,91409.0,0.36672817]
[1732026297620,0.0008944,91410.0,91409.0,0.109398]
[1732026297837,0.02104138,91410.0,91409.0,0.109398]
[1732026298084,0.02104068,91410.0,91409.0,0.109398]
[1732026298526,0.0008944,91410.0,91409.0,0.109398]
[1732026298983,0.10164156,91410.0,91391.0,0.218839]
[1732026299223,0.05238262,91409.0,91395.0,0.16376529]
[1732026299455,0.05238262,91408.0,91395.0,0.27282784]
[1732026299679,0.03223546,91409.0,91407.0,0.1094]
[1732026299891,0.02014747,91408.0,91407.0,0.1094]
[1732026300155,0.05238293,91408.0,91404.0,0.218806]
[1732026300395,0.0814944,91410.0,91404.0,0.218806]
[1732026300396,0.02014747,91407.0,91406.0,0.28316729]
[1732026300605,0.0008944,91410.0,91409.0,0.229398]
[1732026300813,0.0008944,91410.0,91409.0,0.36146055]
[1732026301455,4e-05,91435.0,91434.0,0.109368]
[1732026301712,4e-05,91435.0,91434.0,0.33843055]
[1732026301934,4e-05,91435.0,91434.0,0.36143055]
[1732026302183,4e-05,91435.0,91434.0,0.40519255]
[1732026304805,4e-05,91435.0,91434.0,0.4340618]
[1732026306411,4e-05,91435.0,91434.0,0.4240618]
[1732026306653,4e-05,91435.0,91434.0,0.109368]
[1732026308283,4e-05,91435.0,91434.0,0.21843055]
[1732026308499,4e-05,91435.0,91434.0,0.22843055]
[1732026309361,4e-05,91435.0,91434.0,0.21843055]
[1732026309817,0.0008941,91435.0,91434.0,0.21843055]
[1732026310954,0.0008941,91435.0,91434.0,0.109368]
[1732026311583,0.0201173,91452.0,91442.0,0.218717]
[1732026311878,0.16465999,91456.0,91436.0,0.218732]
[1732026311879,0.0201173,91451.0,91450.0,0.109349]
[1732026312295,0.02016158,91451.0,91450.0,0.109349]
[1732026312777,0.02016158,91451.0,91442.0,0.218717]
[1732026312989,0.02016158,91450.0,91433.0,0.218738]
[1732026313212,0.109359,91442.0,91441.0,0.16376529]
[1732026313429,0.109366,91436.0,91421.0,0.218767]
[1732026313668,0.109366,91436.0,91429.0,0.109373]
[1732026313872,0.109366,91436.0,91431.0,0.16376529]
[1732026313873,0.02017277,91436.0,91431.0,0.16376529]
[1732026314104,0.02017277,91436.0,91435.0,0.1134729]
[1732026315446,0.02017277,91436.0,91435.0,0.25148391]
[1732026315713,0.02885023,91456.0,91435.0,0.25148391]
[1732026315714,0.03230678,91455.0,91454.0,0.109344]
[1732026315925,0.02019288,91455.0,91454.0,0.109344]
[1732026316346,0.0008947,91456.0,91455.0,0.109343]
[1732026316597,0.02109693,91456.0,91455.0,0.109343]
[1732026316824,0.05342048,91456.0,91433.0,0.16376529]
[1732026317086,0.07982451,91455.0,91443.0,0.16376529]
[1732026317297,0.02020223,91454.0,91443.0,0.16376529]
[1732026317531,0.0008947,91456.0,91443.0,0.16376529]
[1732026317532,0.109356,91444.0,91443.0,0.16376529]
[1732026317757,0.02020223,91444.0,91443.0,0.16376529]
[1732026317983,0.02020223,91444.0,91443.0,0.27312229]
[1732026318233,0.02020223,91444.0,91443.0,0.109357]
[1732026318859,0.02020223,91444.0,91438.0,0.218727]
[1732026318860,0.02020223,91444.0,91437.0,0.109364]
[1732026319066,0.02020223,91443.0,91436.0,0.10916255]
[1732026319279,0.02020223,91442.0,91440.0,0.10936]
[1732026319551,0.24694358,91452.0,91436.0,0.10916255]
[1732026319552,0.03232355,91447.0,91436.0,0.10916255]
[1732026319762,0.109346,91453.0,91436.0,0.10916255]
[1732026319763,0.05253146,91446.0,91445.0,0.109355]
[1732026320203,0.02020791,91446.0,91445.0,0.109355]
[1732026320472,0.0008947,91456.0,91445.0,0.109355]
[1732026320473,0.0008947,91456.0,91455.0,0.109343]
[1732026320681,0.0008947,91456.0,91455.0,0.21840555]
[1732026320927,0.0008947,91456.0,91455.0,0.25140555]
[1732026321146,0.0008947,91456.0,91455.0,0.26963116]
[1732026323319,0.0008947,91456.0,91455.0,0.29793437]
[1732026324631,0.0007947,91456.0,91455.0,0.27493437]
[1732026324872,0.0007947,91456.0,91455.0,0.21840555]
[1732026325092,0.0007947,91456.0,91455.0,0.109343]
[1732026325301,0.0007947,91456.0,91447.0,0.218704]
[1732026325510,0.1101377,91456.0,91451.0,0.109347]
[1732026325723,0.0007947,91456.0,91450.0,0.10906255]
[1732026325960,0.0007947,91456.0,91455.0,0.109343]
[1732026327093,0.0007947,91456.0,91455.0,0.21840555]
[1732026327340,0.0007947,91456.0,91455.0,0.24140555]
[1732026327570,0.0007947,91456.0,91455.0,0.25140555]
[1732026327802,0.0007947,91456.0,91455.0,0.109343]
[1732026328257,0.0007947,91456.0,91455.0,0.12822258]
[1732026328498,0.0007947,91456.0,91455.0,0.109343]
[1732026328707,0.0007947,91456.0,91451.0,0.218696]
[1732026328920,0.0007947,91456.0,91444.0,0.03882144]
[1732026328921,0.0007947,91456.0,91455.0,0.109343]
[1732026329150,0.0006947,91456.0,91455.0,0.109343]
[1732026330032,0.02091976,91456.0,91444.0,0.0001]
[1732026330235,0.02091976,91456.0,91455.0,0.109343]
[1732026330236,0.0006947,91456.0,91455.0,0.109343]
[1732026330443,0.0792,91455.0,91444.0,0.10916255]
[1732026330649,0.0792,91455.0,91451.0,0.109347]
[1732026330864,0.02022484,91454.0,91446.0,0.218707]
[1732026331118,0.02022075,91454.0,91447.0,0.218705]
[1732026331381,0.188543,91455.0,91445.0,0.16376529]
[1732026331382,0.02022075,91453.0,91451.0,0.109347]
[1732026331604,0.0792,91455.0,91445.0,0.16376529]
[1732026331815,0.020224,91454.0,91445.0,0.16376529]
[1732026332043,0.020224,91453.0,91449.0,0.218699]
[1732026332268,0.020224,91452.0,91449.0,0.218699]
[1732026332478,0.0792,91455.0,91451.0,0.109348]
[1732026332690,0.0202211,91454.0,91447.0,0.218705]
[1732026332899,0.0202211,91453.0,91447.0,0.218705]
[1732026333105,0.0202211,91452.0,91451.0,0.109347]
[1732026334415,0.10703364,91455.0,91453.0,0.109345]
[1732026334416,0.0202211,91454.0,91453.0,0.109345]
[1732026334620,0.0202611,91454.0,91453.0,0.109345]
[1732026334910,4e-05,91454.0,91453.0,0.109345]
[1732026335107,4e-05,91454.0,91453.0,0.21840755]
[1732026336036,4e-05,91454.0,91453.0,0.22840755]
[1732026337127,4e-05,91454.0,91453.0,0.25140755]
[1732026337349,4e-05,91454.0,91453.0,0.36140755]
[1732026337840,4e-05,91454.0,91453.0,0.33840755]
[1732026338079,4e-05,91454.0,91453.0,0.36140755]
[1732026338495,0.0006947,91456.0,91455.0,0.252343]
[1732026338709,0.0006947,91456.0,91455.0,0.36140555]
[1732026338926,0.0006947,91456.0,91455.0,0.33840555]
[1732026339174,0.0006947,91456.0,91455.0,0.109343]
[1732026340257,0.0006947,91456.0,91455.0,0.21840555]
[1732026341331,0.0006947,91456.0,91452.0,0.437386]
[1732026341547,0.0006947,91456.0,91455.0,0.109343]
[1732026342464,0.0007347,91456.0,91455.0,0.109343]
[1732026345481,0.1100767,91456.0,91455.0,0.0017074]
[1732026346130,0.1100767,91456.0,91455.0,0.1110504]
[1732026346131,0.0007347,91456.0,91455.0,0.1110504]
[1732026348829,0.0007347,91456.0,91455.0,0.0017074]
[1732026349190,0.1100767,91456.0,91455.0,0.0017074]
[1732026349399,0.18966381,91456.0,91455.0,0.0017074]
[1732026351242,0.1100767,91456.0,91455.0,0.0017074]
[1732026351905,0.21913925,91456.0,91455.0,0.0017074]
[1732026352776,0.40563645,91456.0,91455.0,0.0017074]
[1732026352985,0.35423925,91456.0,91455.0,0.0017074]
[1732026353188,0.71294017,91456.0,91455.0,0.0017074]
[1732026353418,0.4633018,91456.0,91455.0,0.0017074]
[1732026353857,1.01542403,91456.0,91455.0,0.0017074]
[1732026354089,0.109355,91445.0,91444.0,0.16386529]
[1732026354310,0.21841755,91445.0,91444.0,0.16386529]
[1732026354562,0.42929304,91445.0,91444.0,0.0001]
[1732026354784,0.78791244,91445.0,91444.0,0.0001]
[1732026355212,0.57702184,91445.0,91444.0,0.0001]
[1732026355453,0.69703417,91445.0,91444.0,0.0001]
[1732026355679,0.48410786,91445.0,91444.0,0.0001]
[1732026356127,0.93975352,91445.0,91444.0,0.0001]
[1732026356340,0.6969448,91445.0,91444.0,0.0001]
[1732026356590,1.12071595,91445.0,91444.0,0.0001]
[1732026356750,0.9870572,91445.0,91444.0,0.0001]
[1732026356969,0.9870572,91445.0,91436.0,0.0001]
[1732026356970,0.231364,91437.0,91436.0,0.0001]
[1732026357217,0.53184519,91437.0,91436.0,0.0001]
[1732026357458,0.89037244,91437.0,91436.0,0.0001]
[1732026357693,0.99943499,91437.0,91436.0,0.0001]
[1732026357928,0.79801635,91437.0,91436.0,0.0001]
[1732026358164,0.80801635,91437.0,91436.0,0.0001]
[1732026358612,0.6889538,91437.0,91436.0,0.0001]
[1732026358820,0.33042655,91437.0,91436.0,0.0001]
[1732026359022,0.68842253,91437.0,91436.0,0.0001]
[1732026359687,0.47584827,91437.0,91436.0,0.0001]
[1732026360363,0.48384828,91437.0,91436.0,0.0001]
[1732026360599,0.80733294,91437.0,91436.0,0.0001]
[1732026360826,0.4494891,91437.0,91436.0,0.0001]
[1732026361051,0.80731342,91437.0,91436.0,0.0001]
[1732026361271,0.6982557,91437.0,91436.0,0.0001]
[1732026361495,0.34042655,91437.0,91436.0,0.0001]
[1732026361749,0.48577999,91437.0,91436.0,0.0001]
[1732026361933,0.6981607,91437.0,91436.0,0.0001]
[1732026362162,0.88382325,91437.0,91436.0,0.0001]
[1732026362555,1.07754352,91437.0,91436.0,0.0001]
[1732026362775,1.29196216,91437.0,91436.0,0.0001]
[1732026362936,1.29196216,91437.0,91416.0,0.16376529]
[1732026362937,0.254366,91436.0,91416.0,0.16376529]
[1732026363148,0.76913127,91436.0,91416.0,0.16376529]
[1732026363359,0.302388,91417.0,91416.0,0.16376529]
[1732026363605,0.41145055,91417.0,91416.0,0.16376529]
[1732026364004,0.41145055,91417.0,91396.0,0.16376529]
[1732026364005,0.229396,91411.0,91396.0,0.16376529]
[1732026364236,0.33845855,91411.0,91396.0,0.16376529]
[1732026364410,0.32845855,91411.0,91396.0,0.16376529]
[1732026364625,0.33845855,91411.0,91396.0,0.16376529]
[1732026364826,0.33945855,91411.0,91396.0,0.16376529]
[1732026365060,0.34045855,91411.0,91396.0,0.16376529]
[1732026365199,0.4495211,91411.0,91396.0,0.16376529]
[1732026366102,0.47775521,91411.0,91396.0,0.16376529]
[1732026366758,0.52153321,91411.0,91396.0,0.16376529]
[1732026366967,0.109412,91397.0,91396.0,0.16376529]
[1732026367181,0.21847455,91397.0,91396.0,0.16376529]
[1732026367615,0.218811,91403.0,91384.0,0.218855]
[1732026367867,0.01,91409.0,91397.0,0.109412]
[1732026368091,0.01,91409.0,91383.0,0.16376529]
[1732026368092,0.21846155,91409.0,91403.0,0.109404]
[1732026368298,0.10906255,91409.0,91406.0,0.109401]
[1732026368510,0.02823411,91411.0,91406.0,0.218804]
[1732026368765,0.109396,91411.0,91410.0,0.0017086]
[1732026369647,0.21845855,91411.0,91410.0,0.0017086]
[1732026369860,0.109407,91402.0,91394.0,0.16376529]
[1732026370091,0.109404,91404.0,91398.0,0.10941]
[1732026370544,0.109406,91403.0,91395.0,0.21883]
[1732026370744,0.109406,91403.0,91394.0,0.16376529]
[1732026370745,0.218812,91403.0,91394.0,0.16376529]
[1732026370974,0.10906255,91409.0,91393.0,0.16376529]
[1732026371202,0.10906255,91409.0,91394.0,0.218832]
[1732026371446,0.10906255,91409.0,91384.0,0.1768]
[1732026371668,0.10906255,91409.0,91393.0,0.16376529]
[1732026371914,0.109412,91398.0,91393.0,0.27318129]
[1732026372107,0.109407,91402.0,91393.0,0.16376529]
[1732026372324,0.109407,91402.0,91397.0,0.109412]
[1732026372738,0.109402,91406.0,91400.0,0.109408]
[1732026372954,0.24109215,91411.0,91403.0,0.16376529]
[1732026372955,0.02229915,91411.0,91403.0,0.16376529]
[1732026373234,0.002,91425.0,91401.0,0.218815]
[1732026373464,0.32782955,91422.0,91405.0,0.218806]
[1732026373674,0.10906255,91422.0,91405.0,0.218806]
[1732026373945,0.10906255,91422.0,91403.0,0.16376529]
[1732026373946,0.109377,91427.0,91403.0,0.16376529]
[1732026374154,0.109389,91417.0,91405.0,0.218806]
[1732026374359,0.109387,91419.0,91413.0,0.109392]
[1732026374564,0.109384,91421.0,91405.0,0.218806]
[1732026374775,0.13096881,91427.0,91408.0,0.218799]
[1732026375023,0.10939,91416.0,91406.0,0.218804]
[1732026375248,0.109388,91418.0,91412.0,0.109394]
[1732026375469,0.10906255,91417.0,91390.0,0.01]
[1732026375676,0.01,91430.0,91421.0,0.109383]
[1732026375898,0.10906255,91429.0,91421.0,0.109383]
[1732026376110,0.10906255,91429.0,91415.0,0.218782]
[1732026376111,0.109379,91425.0,91419.0,0.109385]
[1732026376323,0.10938,91424.0,91419.0,0.109385]
[1732026376538,0.10906255,91425.0,91418.0,0.16376529]
[1732026376767,0.109371,91432.0,91426.0,0.109377]
[1732026376994,0.10906255,91432.0,91418.0,0.16376529]
[1732026377455,0.10906255,91432.0,91427.0,0.109376]
[1732026377456,0.21843355,91432.0,91427.0,0.109376]
[1732026377682,0.10906255,91432.0,91424.0,0.21876]
[1732026377896,0.109374,91430.0,91425.0,0.109378]
[1732026378745,0.21843355,91432.0,91426.0,0.109377]
[1732026378969,0.109372,91431.0,91426.0,0.109377]
[1732026379188,0.109372,91431.0,91421.0,0.218767]
[1732026379397,0.109372,91431.0,91425.0,0.109379]
[1732026379807,0.109372,91431.0,91423.0,0.218763]
[1732026380020,0.109372,91431.0,91418.0,0.16376529]
[1732026380021,0.02923896,91437.0,91428.0,0.16376529]
[1732026380226,0.02923896,91437.0,91418.0,0.16376529]
[1732026380227,0.109367,91435.0,91418.0,0.16376529]
[1732026380430,0.13830151,91437.0,91418.0,0.16376529]
[1732026380949,0.109368,91434.0,91419.0,0.109386]
[1732026381174,0.10906255,91433.0,91425.0,0.0017086]
[1732026381392,0.109378,91426.0,91425.0,0.0017086]
[1732026381631,0.25028461,91426.0,91425.0,0.0017086]
[1732026383925,0.24668962,91426.0,91425.0,0.0017086]
[1732026384173,0.02824907,91426.0,91425.0,0.0017086]
[1732026384396,0.02824907,91426.0,91425.0,0.1110876]
[1732026384627,0.109373,91430.0,91425.0,0.0017086]
[1732026384836,0.10906255,91429.0,91425.0,0.0017086]
[1732026385306,0.109407,91401.0,91400.0,0.0285564]
[1732026385535,0.002,91413.0,91395.0,0.16376529]
[1732026385536,0.218784,91415.0,91395.0,0.16376529]
[1732026385819,0.218784,91414.0,91396.0,0.218827]
[1732026386027,0.09648759,91423.0,91396.0,0.0759]
[1732026386242,0.10910255,91426.0,91399.0,0.10941]
[1732026386446,0.10910255,91426.0,91407.0,0.218801]
[1732026386447,0.109379,91425.0,91407.0,0.218801]
[1732026386653,0.109379,91425.0,91400.0,0.03465578]
[1732026386654,4e-05,91426.0,91405.0,0.16376529]
[1732026386860,4e-05,91426.0,91414.0,0.218784]